bitfinex/quotes_SOLUSD_20220109
["timestamp","ask_amount","ask_price","bid_price","bid_amount"]
[1641716504199,15.499025,139.89,139.81,49.021542]
[1641716504399,15.499025,139.93,139.81,49.021542]
[1641716504599,15.499025,139.92,139.81,49.021542]
[1641716504799,3.0,139.92,139.81,49.021542]
[1641716505006,15.499025,139.91,139.81,49.021542]
[1641716505205,29.228325,139.91,139.81,59.751642]
[1641716505604,15.499025,139.9,139.81,59.751642]
[1641716505805,37.863877,139.9,139.81,49.021542]
[1641716506004,130.418473,139.89,139.75,24.3248]
[1641716506215,10.7362,139.82,139.75,24.3248]
[1641716506405,10.7362,139.82,139.69,0.07]
[1641716506606,10.7362,139.82,139.7,8.6]
[1641716506805,10.7362,139.82,139.7,44.3864]
[1641716507006,6.54525,139.81,139.7,44.4564]
[1641716507205,11.465431,139.81,139.7,44.4564]
[1641716507444,30.915582,139.81,139.75,24.25786447]
[1641716507635,20.179782,139.8,139.75,24.25786447]
[1641716507937,185.3548491,139.84,139.75,24.25786447]
[1641716510638,27.680214,139.83,139.75,24.25786447]
[1641716510939,33.077214,139.83,139.75,24.25786447]
[1641716511137,3.0,139.82,139.75,24.25786447]
[1641716511339,23.177715,139.82,139.69,32.0846]
[1641716511536,10.7394,139.76,139.69,23.4846]
[1641716511736,17.0244,139.76,139.63,8.6]
[1641716511938,3.0,139.75,139.63,8.6]
[1641716512145,17.970781,139.74,139.63,8.6]
[1641716512337,26.685774,139.74,139.64,29.85222376]
[1641716512536,3.25,139.73,139.64,29.85222376]
[1641716512736,8.714993,139.72,139.64,29.85222376]
[1641716512939,10.7432,139.71,139.64,40.59532376]
[1641716513137,1.52364675,139.81,139.64,40.59532376]
[1641716513338,8.6,139.83,139.65,8.6]
[1641716513538,3.0,139.8,139.66,0.07]
[1641716513740,24.219047,139.79,139.66,8.67]
[1641716513938,24.219047,139.79,139.67,27.2748992]
[1641716514140,10.7421,139.73,139.67,27.2748992]
[1641716517742,3.0,139.78,139.67,27.2748992]
[1641716517944,20.166208,139.77,139.67,38.0161992]
[1641716518342,70.86,139.78,139.62,8.6]
[1641716518542,3.0,139.76,139.6,24.3846]
[1641716518743,8.714369,139.75,139.6,24.3846]
[1641716518946,10.20420871,139.75,139.6,24.3846]
[1641716519145,10.7472,139.68,139.6,24.3846]
[1641716519345,8.714369,139.67,139.61,25.06267682]
[1641716519746,35.8239,139.7,139.61,25.06267682]
[1641716519747,11.925156,139.69,139.61,25.06267682]
[1641716519945,11.925156,139.68,139.61,25.06267682]
[1641716520248,11.925156,139.67,139.58,8.6]
[1641716520444,35.8191,139.72,139.58,8.6]
[1641716520647,3.0,139.74,139.58,8.6]
[1641716520845,3.0,139.74,139.59,0.07]
[1641716521046,8.6,139.79,139.59,11.6]
[1641716521247,8.6,139.81,139.61,0.07]
[1641716521446,3.0,139.78,139.63,31.5969866]
[1641716521745,20.160634,139.77,139.63,31.5969866]
[1641716522144,3.0,139.76,139.63,31.5969866]
[1641716522347,14.45,139.77,139.64,8.6]
[1641716522544,14.45,139.77,139.7,10.7382]
[1641716522746,185.3548491,139.84,139.71,38.89138914]
[1641716522948,185.3548491,139.84,139.71,42.14138914]
[1641716523758,185.3548491,139.84,139.77,10.73]
[1641716523948,185.3548491,139.84,139.78,30.27978245]
[1641716524149,185.3548491,139.84,139.78,33.27978245]
[1641716524851,185.3548491,139.84,139.78,29.53300849]
[1641716526249,185.3548491,139.84,139.81,10.73]
[1641716526449,185.3548491,139.84,139.78,29.53300849]
[1641716526450,3.03219997,139.83,139.75,8.6]
[1641716526852,3.03219997,139.83,139.76,3.0]
[1641716527051,8.711225,139.82,139.76,3.0]
[1641716527353,10.7351,139.81,139.73,8.6]
[1641716527551,10.7351,139.81,139.76,22.99844517]
[1641716527752,12.754523,139.8,139.76,22.99844517]
[1641716527952,185.3548491,139.84,139.73,8.6]
[1641716528150,8.711225,139.83,139.73,8.6]
[1641716528551,10.7363,139.8,139.74,10.7357]
[1641716528752,7.420722,139.79,139.72,26.90686938]
[1641716528955,10.7363,139.8,139.72,26.90686938]
[1641716529152,10.7363,139.8,139.67,8.6]
[1641716529352,20.177069,139.79,139.65,120.4698]
[1641716529555,10.7422,139.72,139.64,10.7435]
[1641716529755,16.0562,139.72,139.59,79.9217]
[1641716530061,3.0,139.71,139.59,8.6]
[1641716530354,3.0,139.71,139.6,28.51451387]
[1641716530555,8.719332,139.7,139.6,28.51451387]
[1641716530956,0.25,139.69,139.6,28.51451387]
[1641716531154,8.712477,139.68,139.6,28.51451387]
[1641716531353,10.7459,139.67,139.6,39.26121387]
[1641716531754,8.713724,139.66,139.6,39.26121387]
[1641716531954,10.7459,139.67,139.6,39.26121387]
[1641716532254,3.0,139.71,139.6,39.26121387]
[1641716532454,10.07991695,139.79,139.61,0.25]
[1641716532756,10.07991695,139.79,139.62,8.6]
[1641716532954,10.07991695,139.79,139.63,27.622062]
[1641716533557,35.807,139.76,139.62,44.4061]
[1641716533754,0.25,139.72,139.52,9.11699957]
[1641716533957,0.25,139.72,139.56,3.0]
[1641716534155,3.25,139.72,139.56,11.6]
[1641716534358,10.5,139.72,139.56,11.6]
[1641716534557,10.5,139.72,139.57,29.23678937]
[1641716534757,10.7475,139.65,139.57,29.23678937]
[1641716535260,3.25,139.72,139.57,29.23678937]
[1641716535658,3.25,139.72,139.6,10.746]
[1641716535856,3.25,139.72,139.57,29.23678937]
[1641716536057,4.72991695,139.72,139.57,29.23678937]
[1641716536257,11.97991695,139.72,139.57,29.23678937]
[1641716536757,10.7473,139.65,139.59,10.7473]
[1641716536956,10.7473,139.65,139.6,24.5030923]
[1641716538660,10.7464,139.66,139.6,35.2494923]
[1641716539259,35.8179,139.71,139.6,35.2494923]
[1641716539660,3.0,139.7,139.6,35.2494923]
[1641716540162,1.47991695,139.75,139.61,8.6]
[1641716540366,35.8004,139.78,139.61,17.276]
[1641716540567,4.30341486,139.79,139.67,10.737]
[1641716540765,4.30341486,139.79,139.68,29.05303039]
[1641716540965,4.30341486,139.84,139.68,29.05303039]
[1641716541190,10.7358,139.8,139.68,29.05303039]
[1641716541566,8.701872,139.79,139.74,10.7358]
[1641716541966,10.7358,139.8,139.75,26.99638204]
[1641716542566,10.7358,139.8,139.67,8.6]
[1641716542766,10.7358,139.8,139.72,10.7368]
[1641716542966,0.25,139.79,139.69,35.7892]
[1641716543167,10.7377,139.78,139.69,35.7892]
[1641716543468,10.7377,139.78,139.7,26.91798224]
[1641716543869,189.25744047,139.82,139.7,26.91798224]
[1641716544067,10.735,139.81,139.7,26.91798224]
[1641716544268,189.25744047,139.82,139.71,0.25]
[1641716544467,189.25744047,139.82,139.7,26.91798224]
[1641716544669,189.25744047,139.82,139.71,0.25]
[1641716545472,0.25,139.81,139.71,0.25]
[1641716545673,189.25744047,139.82,139.71,0.25]
[1641716545975,199.99154047,139.82,139.77,28.25969334]
[1641716546172,8.708115,139.81,139.77,28.25969334]
[1641716547176,10.735,139.81,139.77,28.25969334]
[1641716548076,189.25744047,139.82,139.77,38.99329334]
[1641716548479,189.25744047,139.82,139.77,28.25969334]
[1641716549305,199.99174047,139.82,139.77,28.25969334]
[1641716549504,189.25744047,139.82,139.77,28.25969334]
[1641716550406,189.25744047,139.82,139.77,38.99289334]
[1641716550605,189.25744047,139.82,139.78,0.25]
[1641716550806,183.25744047,139.82,139.78,8.85]
[1641716551012,81.15861486,139.93,139.82,2.0]
[1641716551206,4.30341486,139.93,139.82,2.0]
[1641716551408,8.70741,139.92,139.82,2.0]
[1641716551608,226.56261401,139.91,139.82,2.0]
[1641716551806,226.56261401,139.91,139.84,25.0152758]
[1641716552008,226.56261401,139.91,139.85,8.85]
[1641716552408,4.30341486,139.95,139.85,8.85]
[1641716552608,35.751,139.98,139.85,8.85]
[1641716553009,10.7251,139.95,139.88,10.7246]
[1641716553207,35.751,139.98,139.89,22.63939484]
[1641716553611,4.30341486,139.99,139.89,22.63939484]
[1641716554011,4.30341486,139.99,139.88,31.65967414]
[1641716554311,3.25,139.98,139.88,31.65967414]
[1641716554711,35.7598,139.95,139.83,8.6]
[1641716555612,3.35903079,139.94,139.84,24.22577809]
[1641716555813,14.08483079,139.94,139.84,24.22577809]
[1641716556011,14.08483079,139.94,139.82,2.0]
[1641716556214,35.7748,139.89,139.82,2.0]
[1641716556412,5.438,139.89,139.82,2.0]
[1641716556612,11.6,139.88,139.72,73.6606]
[1641716556811,10.7365,139.8,139.71,109.4477]
[1641716557013,10.7365,139.8,139.73,31.27236049]
[1641716557621,8.721112,139.79,139.73,31.27236049]
[1641716557819,10.7388,139.77,139.73,31.27236049]
[1641716560449,10.7381,139.78,139.73,31.27236049]
[1641716560648,35.7899,139.83,139.73,31.27236049]
[1641716560849,8.6,139.88,139.73,31.27236049]
[1641716561048,3.0,139.87,139.73,31.27236049]
[1641716561952,10.7358,139.81,139.73,42.00866049]
[1641716563050,10.7358,139.81,139.73,50.60866049]
[1641716564950,10.7352,139.82,139.73,50.60866049]
[1641716565151,35.7828,139.86,139.73,50.60866049]
[1641716565750,35.7828,139.86,139.75,10.7344]
[1641716565951,35.7828,139.86,139.73,39.87236049]
[1641716565952,3.0,139.87,139.73,39.87236049]
[1641716566151,23.331844,139.86,139.7,8.6]
[1641716566351,35.48,139.85,139.68,24.1399]
[1641716566553,110.81662795,139.85,139.68,24.1399]
[1641716566750,118.06662795,139.85,139.68,24.1399]
[1641716566951,8.6,139.84,139.68,24.1399]
[1641716567152,14.944,139.84,139.69,22.57466954]
[1641716567351,10.7415,139.76,139.69,22.57466954]
[1641716568155,10.7415,139.76,139.67,8.6]
[1641716568358,3.0,139.75,139.63,24.4337]
[1641716568556,10.7453,139.69,139.63,24.4337]
[1641716568757,18.1573,139.69,139.62,8.6]
[1641716569157,18.1573,139.69,139.63,29.07116888]
[1641716570359,10.7453,139.69,139.63,29.07116888]
[1641716570763,10.7433,139.72,139.64,0.25]
[1641716570958,35.8108,139.75,139.66,30.7831969]
[1641716571560,253.96405523,139.81,139.66,30.7831969]
[1641716571764,10.7443,139.75,139.66,30.7831969]
[1641716572059,35.8089,139.76,139.66,30.7831969]
[1641716572863,10.7426,139.73,139.66,30.7831969]
[1641716573762,10.7426,139.73,139.66,39.3831969]
[1641716573962,10.7418,139.74,139.67,0.25]
[1641716574162,253.96405523,139.81,139.67,0.25]
[1641716574163,253.96405523,139.81,139.69,25.04246366]
[1641716574366,253.96405523,139.81,139.7,8.85]
[1641716574563,253.96405523,139.81,139.75,23.33910423]
[1641716575366,4.30341486,139.85,139.75,23.33910423]
[1641716575565,4.30341486,139.85,139.75,31.93910423]
[1641716575768,4.30341486,139.85,139.75,42.67400423]
[1641716575966,4.30341486,139.89,139.75,42.67400423]
[1641716576167,10.7349,139.84,139.75,42.67400423]
[1641716576367,10.7349,139.84,139.75,19.3349]
[1641716576566,35.7846,139.87,139.75,19.3349]
[1641716576567,0.25,139.83,139.75,8.6]
[1641716576970,3.25,139.88,139.72,8.6]
[1641716577367,10.7376,139.8,139.73,30.91164121]
[1641716577567,3.25,139.88,139.74,8.6]
[1641716577768,3.0,139.88,139.74,8.6]
[1641716578167,8.709279,139.87,139.74,8.6]
[1641716578366,3.88719414,139.87,139.74,8.6]
[1641716578567,3.0,139.86,139.74,8.6]
[1641716578766,10.7352,139.83,139.74,19.3353]
[1641716578969,8.709279,139.85,139.74,8.6]
[1641716579166,7.79307,139.84,139.74,8.6]
[1641716579369,0.25,139.84,139.74,8.6]
[1641716579568,3.88719414,139.84,139.74,8.6]
[1641716580166,0.25,139.86,139.74,19.3359]
[1641716580167,10.7359,139.83,139.74,19.3359]
[1641716580569,10.7359,139.83,139.74,8.6]
[1641716582073,3.0,139.82,139.74,8.6]
[1641716582369,10.7381,139.8,139.74,8.6]
[1641716582771,35.7912,139.84,139.74,8.6]
[1641716583173,10.7372,139.81,139.73,30.91164121]
[1641716583473,4.30341486,139.88,139.7,8.6]
[1641716583474,4.03612376,139.83,139.7,8.6]
[1641716583672,8.533,139.81,139.7,8.6]
[1641716584473,10.7404,139.77,139.71,29.09020686]
[1641716587184,10.7392,139.78,139.71,29.09020686]
[1641716587479,0.25,139.77,139.71,29.09020686]
[1641716588079,10.9899,139.77,139.71,29.09020686]
[1641716588882,10.7399,139.77,139.71,29.09020686]
[1641716589080,40.10231486,139.81,139.71,37.69020686]
[1641716589289,10.7392,139.78,139.71,37.69020686]
[1641716591382,14.78472147,139.79,139.71,37.69020686]
[1641716591784,10.7384,139.79,139.71,37.69020686]
[1641716592888,10.7384,139.79,139.71,8.6]
[1641716593724,14.78472147,139.79,139.71,8.6]
[1641716594316,10.7406,139.76,139.71,8.6]
[1641716594718,8.09382408,139.78,139.71,8.6]
[1641716595015,4.04632147,139.78,139.71,8.6]
[1641716595216,4.04632147,139.78,139.72,26.6313971]
[1641716595417,10.7399,139.77,139.72,26.6313971]
[1641716595616,4.04632147,139.78,139.72,26.6313971]
[1641716596419,4.04632147,139.79,139.72,26.6313971]
[1641716597321,4.04632147,139.79,139.72,35.2313971]
[1641716597919,4.04632147,139.79,139.72,45.9689971]
[1641716599020,8.09474803,139.79,139.72,45.9689971]
[1641716599622,8.09474803,139.79,139.72,52.0159971]
[1641716599825,8.09474803,139.79,139.73,4.97345313]
[1641716600025,4.30341486,139.82,139.74,8.6]
[1641716600228,8.09608591,139.83,139.78,10.7264]
[1641716600527,6.07031102,139.86,139.8,26.2680829]
[1641716600724,6.07031102,139.86,139.82,35.7516]
[1641716600929,6.07031102,139.86,139.83,35.41907498]
[1641716601124,6.07031102,139.86,139.84,22.35699997]
[1641716601524,6.07031102,139.86,139.85,3.0]
[1641716601724,6.07031102,139.86,139.85,8.6]
[1641716602125,6.07031102,139.86,139.85,11.6]
[1641716602328,6.07031102,139.86,139.85,19.3268]
[1641716602626,6.07031102,139.86,139.85,22.3268]
[1641716602826,10.7276,139.92,139.86,27.74229663]
[1641716603025,8.4551167,139.94,139.86,27.74229663]
[1641716603226,8.707397,139.93,139.86,27.74229663]
[1641716604027,10.7283,139.91,139.86,27.74229663]
[1641716604831,10.7283,139.91,139.86,1e-08]
[1641716606132,0.25,139.9,139.86,1e-08]
[1641716606736,10.7273,139.92,139.86,1e-08]
[1641716606931,0.35903079,139.94,139.86,1e-08]
[1641716607532,19.15590337,139.94,139.87,8.6]
[1641716608236,11.08483079,139.94,139.87,8.6]
[1641716608835,11.08483079,139.94,139.87,19.326]
[1641716609237,0.35903079,139.94,139.87,19.326]
[1641716609637,0.35903079,139.94,139.89,24.9056356]
[1641716609840,0.35903079,139.94,139.92,10.7218]
[1641716610043,0.35903079,139.94,139.93,29.42546895]
[1641716610245,0.35903079,139.94,139.93,32.45766892]
[1641716610946,0.35903079,139.94,139.93,32.70766892]
[1641716611845,0.35903079,139.94,139.93,43.42886892]
[1641716612680,0.35903079,139.94,139.93,46.42886892]
[1641716613482,0.35903079,139.94,139.93,43.17886892]
[1641716614480,128.3801,140.1,139.94,72.35]
[1641716614688,128.3801,140.1,139.98,10.7174]
[1641716614885,256.00179548,140.11,139.99,28.41124998]
[1641716615186,1.47550048,140.09,139.99,28.41124998]
[1641716615381,10.7191,140.04,139.99,28.41124998]
[1641716615580,35.7303,140.07,139.99,28.41124998]
[1641716616280,10.7187,140.04,139.99,28.41124998]
[1641716618086,10.7177,140.05,139.99,28.41124998]
[1641716619490,240.30620256,140.11,139.99,44.91324998]
[1641716619888,129.67899292,140.15,139.99,44.91324998]
[1641716619889,1.47927976,140.14,139.99,44.91324998]
[1641716620290,1.47927976,140.14,140.0,3.0]
[1641716620488,1.9989874,140.06,140.01,8.6]
[1641716621695,1.9989874,140.04,140.01,8.6]
[1641716622197,1.9989874,140.04,139.97,19.3174]
[1641716622398,1.9989874,140.04,139.97,8.6]
[1641716622597,1.9989874,140.04,139.96,10.7188]
[1641716623198,1.9989874,140.0,139.97,27.57385799]
[1641716623397,1.9989874,140.0,139.98,3.03219997]
[1641716624026,10.7215,140.0,139.98,3.03219997]
[1641716624226,3.03219997,139.99,139.93,8.6]
[1641716624629,3.03219997,139.99,139.94,28.62578504]
[1641716625227,10.7224,139.98,139.94,28.62578504]
[1641716625429,3.03219997,139.99,139.94,28.62578504]
[1641716625927,3.03219997,139.99,139.93,8.6]
[1641716626129,11.27919997,139.99,139.93,8.6]
[1641716626327,11.27919997,139.99,139.86,159.5813]
[1641716626328,3.0,139.98,139.9,8.6]
[1641716626530,4.9989874,139.98,139.89,8.6]
[1641716626829,4.9989874,139.98,139.85,8.6]
[1641716627029,1.9989874,139.94,139.88,28.76287991]
[1641716627227,10.7266,139.92,139.88,28.76287991]
[1641716627830,10.7266,139.92,139.85,8.6]
[1641716628429,3.0,139.91,139.85,8.6]
[1641716628831,10.7296,139.88,139.85,8.6]
[1641716629030,10.7296,139.88,139.86,3.03219997]
[1641716629434,10.7296,139.88,139.87,31.16053122]
[1641716629630,10.7296,139.88,139.86,3.03219997]
[1641716630232,12.7278874,139.9,139.86,3.03219997]
[1641716630635,1.9989874,139.89,139.87,22.77744989]
[1641716631035,1.9989874,139.89,139.88,3.03219997]
[1641716632435,2.2489874,139.89,139.88,3.03219997]
[1641716632640,1.9989874,139.89,139.88,3.03219997]
[1641716632837,12.9786874,139.89,139.88,3.03219997]
[1641716633437,62.9786874,139.89,139.88,3.03219997]
[1641716633637,36.0,139.88,139.78,8.6]
[1641716633838,39.0,139.88,139.81,30.81662279]
[1641716634239,10.7327,139.85,139.81,30.81662279]
[1641716634439,2.01583072,139.86,139.81,30.81662279]
[1641716635239,2.01583072,139.86,139.81,41.54692279]
[1641716636039,2.01583072,139.87,139.81,41.54692279]
[1641716636739,12.74583072,139.88,139.81,41.54692279]
[1641716637341,2.01583072,139.87,139.81,41.54692279]
[1641716637741,2.01583072,139.87,139.81,50.14692279]
[1641716637941,2.01583072,139.87,139.81,39.41662279]
[1641716638539,10.7369,139.84,139.81,39.41662279]
[1641716638741,6.06439994,139.83,139.81,39.41662279]
[1641716638940,41.85709994,139.83,139.81,39.41662279]
[1641716639341,41.85709994,139.83,139.81,8.6]
[1641716639741,10.7378,139.82,139.81,8.6]
[1641716639940,10.7378,139.82,139.78,8.6]
[1641716640341,10.7378,139.82,139.78,32.33185901]
[1641716640541,0.25,139.81,139.78,8.6]
[1641716640743,10.7402,139.78,139.73,24.7823]
[1641716640944,0.25,139.77,139.72,8.6]
[1641716641543,0.25,139.78,139.73,26.29182591]
[1641716641945,10.7398,139.77,139.73,26.29182591]
[1641716642146,0.25,139.78,139.73,26.29182591]
[1641716642545,2.01583072,139.82,139.73,26.29182591]
[1641716642746,2.01583072,139.82,139.74,8.6]
[1641716642949,2.01583072,139.82,139.73,69.99932591]
[1641716643147,2.01583072,139.84,139.74,10.31]
[1641716643548,2.01583072,139.84,139.76,23.01679922]
[1641716643756,2.01583072,139.84,139.77,10.31]
[1641716643946,2.01583072,139.84,139.77,13.56]
[1641716644149,2.01583072,139.84,139.77,13.31]
[1641716644349,2.01583072,139.88,139.77,10.31]
[1641716644548,3.0,139.87,139.76,23.01679922]
[1641716644847,3.25,139.87,139.76,23.01679922]
[1641716645048,2.01583072,139.85,139.76,23.01679922]
[1641716645447,3.0,139.84,139.76,23.01679922]
[1641716645949,5.01583072,139.84,139.76,23.01679922]
[1641716646547,2.01583072,139.84,139.76,23.01679922]
[1641716647554,0.25,139.87,139.76,23.01679922]
[1641716647555,2.01583072,139.86,139.76,23.01679922]
[1641716647952,2.01583072,139.86,139.77,0.25]
[1641716648151,2.01583072,139.86,139.79,29.50086394]
[1641716648352,2.01583072,139.86,139.8,10.31]
[1641716648551,2.01583072,139.86,139.8,13.31]
[1641716648755,2.01583072,139.88,139.8,13.31]
[1641716648953,2.01583072,139.88,139.84,24.59121879]
[1641716649551,2.01583072,139.89,139.84,24.59121879]
[1641716650175,2.01583072,139.9,139.84,35.31901879]
[1641716650775,2.01583072,139.9,139.84,24.59121879]
[1641716651176,12.74663072,139.9,139.84,24.59121879]
[1641716651378,0.25,139.89,139.84,24.59121879]
[1641716651576,2.01583072,139.88,139.82,10.31]
[1641716651778,2.01583072,139.88,139.79,10.31]
[1641716651975,2.01583072,139.88,139.77,10.31]
[1641716652376,2.01583072,139.86,139.77,10.31]
[1641716652576,10.7359,139.84,139.78,25.23154489]
[1641716653376,12.75173072,139.84,139.78,25.23154489]
[1641716653776,2.01583072,139.84,139.79,10.31]
[1641716654476,2.01583072,139.84,139.81,30.36512385]
[1641716654675,3.072e-05,139.84,139.82,10.31]
[1641716654876,3.072e-05,139.88,139.82,10.31]
[1641716657889,3.072e-05,139.88,139.85,10.727]
[1641716658989,288.4092597,139.98,139.85,10.727]
[1641716659191,215.5099597,139.98,139.85,10.727]
[1641716659388,10.7274,139.95,139.85,10.727]
[1641716659589,10.7274,139.95,139.85,35.24398724]
[1641716659789,0.25,139.94,139.85,35.24398724]
[1641716661188,0.25,139.94,139.85,24.51698724]
[1641716661390,10.9783,139.94,139.82,47.3843]
[1641716661589,21.2883,139.94,139.78,73.9109]
[1641716661791,3.0,139.93,139.78,73.9109]
[1641716661990,9.393,139.93,139.78,84.2209]
[1641716662289,9.393,139.93,139.79,24.05111226]
[1641716662689,10.7329,139.87,139.79,24.05111226]
[1641716662890,16.5159,139.87,139.79,24.05111226]
[1641716663696,5.783,139.87,139.79,24.05111226]
[1641716664098,5.783,139.87,139.78,10.31]
[1641716664891,16.5161,139.87,139.78,10.31]
[1641716666495,47.87195979,139.77,139.58,2.1791]
[1641716666695,47.87195979,139.77,139.6,411.9954]
[1641716666903,0.25,139.76,139.6,411.9954]
[1641716667194,0.25,139.76,139.65,10.31]
[1641716667396,0.25,139.76,139.67,29.77226544]
[1641716667596,0.25,139.76,139.7,30.14994709]
[1641716668797,10.9894,139.76,139.7,30.14994709]
[1641716671799,10.9894,139.76,139.7,40.88894709]
[1641716672499,10.9894,139.76,139.7,10.739]
[1641716672700,10.9894,139.76,139.65,10.31]
[1641716672900,10.9894,139.76,139.67,10.7408]
[1641716673701,3.0,139.75,139.67,10.7408]
[1641716673901,10.7412,139.73,139.67,10.7408]
[1641716674301,10.7412,139.73,139.66,10.7419]
[1641716674506,10.7412,139.73,139.66,19.3419]
[1641716674904,10.7391,139.75,139.66,19.3419]
[1641716675104,9.87195979,139.77,139.66,19.3419]
[1641716675502,9.87195979,139.77,139.67,3.25]
[1641716675704,9.87195979,139.77,139.73,22.44181335]
[1641716675904,9.87195979,139.77,139.73,31.04181335]
[1641716676307,9.87195979,139.77,139.74,3.0]
[1641716676807,9.87195979,139.77,139.75,10.7328]
[1641716677008,9.87195979,139.77,139.74,38.776]
[1641716677009,9.87195979,139.77,139.76,28.66270356]
[1641716677807,9.87195979,139.77,139.76,39.39600356]
[1641716679008,82.9019,139.89,139.78,9.24054019]
[1641716679210,246.7182218,139.9,139.78,9.24054019]
[1641716679211,246.7182218,139.9,139.78,17.84054019]
[1641716679611,10.7291,139.89,139.78,17.84054019]
[1641716679808,10.7291,139.89,139.79,3.0]
[1641716680009,10.7291,139.89,139.8,23.55276899]
[1641716680408,10.7291,139.89,139.81,10.7303]
[1641716680810,10.7291,139.89,139.78,17.84054019]
[1641716681010,3.0,139.88,139.78,17.84054019]
[1641716681210,10.7327,139.85,139.78,17.84054019]
[1641716681409,10.7327,139.85,139.78,9.24054019]
[1641716682009,3.0,139.84,139.78,9.24054019]
[1641716682214,13.7332,139.84,139.78,9.24054019]
[1641716682711,0.25,139.83,139.78,9.24054019]
[1641716683611,10.9836,139.83,139.78,9.24054019]
[1641716684236,13.2836,139.83,139.78,9.24054019]
[1641716685239,10.9836,139.83,139.78,9.24054019]
[1641716685440,3.0,139.82,139.78,9.24054019]
[1641716685640,10.7369,139.8,139.78,9.24054019]
[1641716685842,32.06439994,139.79,139.78,9.24054019]
[1641716686040,6.06439994,139.79,139.78,9.24054019]
[1641716686240,6.31439994,139.79,139.78,9.24054019]
[1641716686842,17.05139994,139.79,139.78,9.24054019]
[1641716688345,6.06439994,139.79,139.78,9.24054019]
[1641716688946,6.06464255,139.87,139.78,49.27264022]
[1641716689146,91.62834255,139.89,139.79,25.0150385]
[1641716689347,10.7317,139.85,139.79,25.0150385]
[1641716689951,0.25,139.84,139.79,25.0150385]
[1641716690349,0.25,139.84,139.79,35.7470385]
[1641716690550,10.9826,139.84,139.79,25.0150385]
[1641716690751,10.9826,139.84,139.78,9.24054019]
[1641716691353,3.0,139.83,139.78,9.24054019]
[1641716691950,35.7882,139.82,139.78,9.24054019]
[1641716692652,3.0,139.86,139.78,9.24054019]
[1641716692856,4.03699414,139.87,139.78,9.24054019]
[1641716693055,6.06464255,139.89,139.81,35.7549]
[1641716693056,4.03699414,139.85,139.81,35.7549]
[1641716693256,4.03699414,139.85,139.82,25.8992011]
[1641716693555,4.03699414,139.88,139.83,6.06439994]
[1641716693754,4.03699414,139.88,139.85,10.7261]
[1641716694254,4.03699414,139.88,139.85,37.1919247]
[1641716694455,0.25,139.87,139.85,37.1919247]
[1641716695059,4.03699414,139.88,139.85,37.1919247]
[1641716695255,4.03699414,139.88,139.86,6.06439994]
[1641716695455,4.03699414,139.88,139.87,10.7249]
[1641716695856,4.03699414,139.88,139.85,14.80599356]
[1641716696254,4.03699414,139.89,139.86,3.0]
[1641716696755,4.03699414,139.9,139.88,10.7243]
[1641716696955,4.03699414,139.9,139.88,34.48922047]
[1641716697154,4.03699414,139.9,139.88,23.76492047]
[1641716697354,0.25,139.89,139.88,23.76492047]
[1641716698556,4.03699414,139.9,139.88,23.76492047]
[1641716699355,8.07062307,139.95,139.88,23.76492047]
[1641716699655,18.79482307,139.95,139.88,23.76492047]
[1641716699855,8.07062307,139.95,139.88,23.76492047]
[1641716700056,4.03699414,139.95,139.88,23.76492047]
[1641716700861,4.03699414,139.93,139.88,23.76492047]
[1641716701260,0.25,139.92,139.88,23.76492047]
[1641716701661,10.726,139.93,139.88,23.76492047]
[1641716701864,10.976,139.93,139.88,23.76492047]
[1641716702263,0.25,139.93,139.88,23.76492047]
[1641716702691,0.25,139.93,139.89,10.7244]
[1641716702889,4.03699414,139.94,139.89,10.7244]
[1641716703490,4.03699414,139.94,139.9,3.0]
[1641716703689,4.03699414,139.94,139.91,29.30031457]
[1641716703891,4.03699414,139.94,139.92,10.721]
[1641716704591,4.03699414,139.98,139.92,10.721]
[1641716705993,4.03699414,140.0,139.92,10.721]